fUST/lending_fUST_20260520
["ID","MTS","AMOUNT","RATE_DAILY","PERIOD"]
[422693564,1779253847000,-500.0,9.041e-05,2]
[422693593,1779253847000,-4369.51,9.041e-05,2]
[422693548,1779253847000,-825.14,9.041e-05,2]
[422693558,1779253847000,-2021.35,9.041e-05,2]
[422693547,1779253847000,-500.0,9.041e-05,2]
[422693553,1779253847000,-537.84,9.041e-05,2]
[422693550,1779253847000,-500.0,9.041e-05,2]
[422693551,1779253847000,-500.0,9.041e-05,2]
[422693554,1779253847000,-606.11,9.041e-05,2]
[422693549,1779253847000,-500.0,9.041e-05,2]
[422693552,1779253847000,-500.0,9.041e-05,2]
[422693556,1779253847000,-1518.43,9.041e-05,2]
[422693557,1779253847000,-2915.29,9.041e-05,2]
[422693559,1779253847000,-606.4,9.041e-05,2]
[422693562,1779253847000,-2888.2,9.041e-05,2]
[422693566,1779253847000,-204.62694826,9.041e-05,2]
[422693560,1779253847000,-2145.16,9.041e-05,2]
[422693569,1779253847000,-500.0,9.041e-05,2]
[422693561,1779253847000,-500.0,9.041e-05,2]
[422693565,1779253847000,-500.0,9.041e-05,2]
[422693568,1779253847000,-500.0,9.041e-05,2]
[422693563,1779253847000,-2431.41,9.041e-05,2]
[422693570,1779253847000,-1924.53,9.041e-05,2]
[422693588,1779253847000,-1078.06,9.041e-05,2]
[422693595,1779253847000,-500.0,9.041e-05,2]
[422693591,1779253847000,-1573.32,9.041e-05,2]
[422693629,1779253847000,-500.0,9.041e-05,2]
[422693621,1779253847000,-628.16,9.041e-05,2]
[422693619,1779253847000,-500.0,9.041e-05,2]
[422693624,1779253847000,-1571.7,9.041e-05,2]
[422693622,1779253847000,-766.36,9.041e-05,2]
[422693618,1779253847000,-621.31061647,9.041e-05,2]
[422693623,1779253847000,-500.0,9.041e-05,2]
[422693620,1779253847000,-1938.51,9.041e-05,2]
[422693626,1779253847000,-4886.17,9.041e-05,2]
[422693630,1779253847000,-937.65,9.041e-05,2]
[422693639,1779253847000,-500.0,9.1e-05,2]
[422693631,1779253847000,-500.0,9.041e-05,2]
[422693640,1779253847000,-293.52827581,9.116e-05,2]
[422693632,1779253847000,-1311.79,9.041e-05,2]
[422693633,1779253847000,-500.0,9.041e-05,2]
[422693635,1779253847000,-4707.77,9.041e-05,2]
[422693634,1779253847000,-1709.26,9.041e-05,2]
[422693637,1779253847000,-819.34,9.041e-05,2]
[422693636,1779253847000,-2023.45,9.041e-05,2]
[422693638,1779253847000,-500.0,9.041e-05,2]
[422693594,1779253847000,-500.0,9.041e-05,2]
[422693627,1779253847000,-730.32,9.041e-05,2]
[422693628,1779253847000,-521.46,9.041e-05,2]
[422693641,1779253847000,-10000.0,9.123e-05,2]
[422693625,1779253847000,-500.0,9.041e-05,2]
[422693596,1779253847000,-500.0,9.041e-05,2]
[422693617,1779253847000,-249.93957343,9.041e-05,2]
[422693598,1779253847000,-500.0,9.041e-05,2]
[422693597,1779253847000,-500.0,9.041e-05,2]
[422693601,1779253847000,-500.0,9.041e-05,2]
[422693602,1779253847000,-1998.99,9.041e-05,2]
[422693599,1779253847000,-30692.84,9.041e-05,2]
[422693603,1779253847000,-580.339295,9.041e-05,2]
[422693604,1779253847000,-1240.91,9.041e-05,2]
[422693606,1779253847000,-500.0,9.041e-05,2]
[422693600,1779253847000,-500.0,9.041e-05,2]
[422693607,1779253847000,-6063.85,9.041e-05,2]
[422693608,1779253847000,-500.0,9.041e-05,2]
[422693609,1779253847000,-500.0,9.041e-05,2]
[422693610,1779253847000,-1236.31531764,9.041e-05,2]
[422693614,1779253847000,-1186.8,9.041e-05,2]
[422693615,1779253847000,-500.0,9.041e-05,2]
[422693611,1779253847000,-1330.67468236,9.041e-05,2]
[422693612,1779253847000,-1359.63,9.041e-05,2]
[422693613,1779253847000,-500.0,9.041e-05,2]
[422693605,1779253847000,-549.78,9.041e-05,2]
[422693616,1779253847000,-2668.41,9.041e-05,2]
[422693687,1779253848000,-954.32,9.315e-05,2]
[422693693,1779253848000,-1490.61,9.315e-05,2]
[422693683,1779253848000,-554.37,9.315e-05,2]
[422693695,1779253848000,-519.7,9.315e-05,2]
[422693686,1779253848000,-461.09423918,9.315e-05,2]
[422693680,1779253848000,-500.0,9.315e-05,2]
[422693677,1779253848000,-1143.38,9.315e-05,2]
[422693679,1779253848000,-500.0,9.315e-05,2]
[422693681,1779253848000,-2726.82,9.315e-05,2]
[422693668,1779253848000,-500.0,9.315e-05,2]
[422693688,1779253848000,-500.0,9.315e-05,2]
[422693673,1779253848000,-500.0,9.315e-05,2]
[422693682,1779253848000,-525.33,9.315e-05,2]
[422693684,1779253848000,-535.7,9.315e-05,2]
[422693698,1779253848000,-500.0,9.315e-05,2]
[422693690,1779253848000,-506.92172182,9.315e-05,2]
[422693685,1779253848000,-506.66228057,9.315e-05,2]
[422693689,1779253848000,-956.18,9.315e-05,2]
[422693691,1779253848000,-500.0,9.315e-05,2]
[422693692,1779253848000,-515.14,9.315e-05,2]
[422693697,1779253848000,-500.0,9.315e-05,2]
[422693707,1779253848000,-766.99,9.315e-05,2]
[422693708,1779253848000,-500.0,9.315e-05,2]
[422693709,1779253848000,-500.0,9.315e-05,2]
[422693699,1779253848000,-500.0,9.315e-05,2]
[422693696,1779253848000,-500.0,9.315e-05,2]
[422693701,1779253848000,-568.48,9.315e-05,2]
[422693702,1779253848000,-500.0,9.315e-05,2]
[422693676,1779253848000,-500.0,9.315e-05,2]
[422693694,1779253848000,-500.0,9.315e-05,2]
[422693675,1779253848000,-719.85,9.315e-05,2]
[422693646,1779253848000,-160.10879418,9.3e-05,2]
[422693674,1779253848000,-500.0,9.315e-05,2]
[422693704,1779253848000,-667.03,9.315e-05,2]
[422693642,1779253848000,-180.0027,9.178e-05,2]
[422693653,1779253848000,-500.0,9.315e-05,2]
[422693643,1779253848000,-587.0,9.179e-05,2]
[422693648,1779253848000,-500.0,9.315e-05,2]
[422693647,1779253848000,-3116.2369,9.315e-05,2]
[422693644,1779253848000,-160.54426975,9.225e-05,5]
[422693649,1779253848000,-591.4956,9.315e-05,2]
[422693654,1779253848000,-500.0,9.315e-05,2]
[422693645,1779253848000,-160.0,9.225e-05,5]
[422693652,1779253848000,-651.51,9.315e-05,2]
[422693650,1779253848000,-500.0,9.315e-05,2]
[422693651,1779253848000,-566.22934968,9.315e-05,2]
[422693655,1779253848000,-500.0,9.315e-05,2]
[422693671,1779253848000,-1092.1,9.315e-05,2]
[422693667,1779253848000,-467.93165714,9.315e-05,2]
[422693666,1779253848000,-500.0,9.315e-05,2]
[422693656,1779253848000,-571.58,9.315e-05,2]
[422693660,1779253848000,-500.0,9.315e-05,2]
[422693662,1779253848000,-500.0,9.315e-05,2]
[422693661,1779253848000,-892.28,9.315e-05,2]
[422693664,1779253848000,-501.67447443,9.315e-05,2]
[422693663,1779253848000,-500.0,9.315e-05,2]
[422693658,1779253848000,-500.0,9.315e-05,2]
[422693665,1779253848000,-500.0,9.315e-05,2]
[422693659,1779253848000,-500.0,9.315e-05,2]
[422693669,1779253848000,-500.0,9.315e-05,2]
[422693670,1779253848000,-500.0,9.315e-05,2]
[422693678,1779253848000,-500.0,9.315e-05,2]
[422693672,1779253848000,-500.0,9.315e-05,2]
[422693657,1779253848000,-500.0,9.315e-05,2]
[422693700,1779253848000,-647.57227811,9.315e-05,2]
[422693745,1779253848000,-500.0,9.315e-05,2]
[422693703,1779253848000,-864.46,9.315e-05,2]
[422693746,1779253848000,-1353.0,9.315e-05,2]
[422693747,1779253848000,-734.29,9.315e-05,2]
[422693744,1779253848000,-500.0,9.315e-05,2]
[422693741,1779253848000,-452.59976829,9.315e-05,2]
[422693737,1779253848000,-500.0,9.315e-05,2]
[422693748,1779253848000,-500.0,9.315e-05,2]
[422693750,1779253848000,-1400.31,9.315e-05,2]
[422693761,1779253848000,-500.0,9.315e-05,2]
[422693760,1779253848000,-6582.72,9.315e-05,2]
[422693749,1779253848000,-500.0,9.315e-05,2]
[422693753,1779253848000,-500.0,9.315e-05,2]
[422693754,1779253848000,-500.0,9.315e-05,2]
[422693751,1779253848000,-500.0,9.315e-05,2]
[422693755,1779253848000,-652.84,9.315e-05,2]
[422693759,1779253848000,-500.0,9.315e-05,2]
[422693756,1779253848000,-500.0,9.315e-05,2]
[422693758,1779253848000,-500.0,9.315e-05,2]
[422693757,1779253848000,-500.0,9.315e-05,2]
[422693764,1779253848000,-500.0,9.315e-05,2]
[422693762,1779253848000,-3020.76,9.315e-05,2]
[422693763,1779253848000,-500.0,9.315e-05,2]
[422693766,1779253848000,-500.0,9.315e-05,2]
[422693765,1779253848000,-500.0,9.315e-05,2]
[422693771,1779253848000,-500.0,9.315e-05,2]
[422693767,1779253848000,-1333.21,9.315e-05,2]
[422693770,1779253848000,-825.14,9.315e-05,2]
[422693768,1779253848000,-500.0,9.315e-05,2]
[422693769,1779253848000,-500.0,9.315e-05,2]
[422693705,1779253848000,-2890.01,9.315e-05,2]
[422693743,1779253848000,-866.91,9.315e-05,2]
[422693772,1779253848000,-500.0,9.315e-05,2]
[422693752,1779253848000,-500.0,9.315e-05,2]
[422693740,1779253848000,-500.0,9.315e-05,2]
[422693706,1779253848000,-500.0,9.315e-05,2]
[422693712,1779253848000,-769.64,9.315e-05,2]
[422693710,1779253848000,-500.0,9.315e-05,2]
[422693742,1779253848000,-500.0,9.315e-05,2]
[422693714,1779253848000,-1522.62,9.315e-05,2]
[422693711,1779253848000,-500.0,9.315e-05,2]
[422693717,1779253848000,-500.0,9.315e-05,2]
[422693722,1779253848000,-500.0,9.315e-05,2]
[422693715,1779253848000,-609.97,9.315e-05,2]
[422693721,1779253848000,-541.24,9.315e-05,2]
[422693716,1779253848000,-500.0,9.315e-05,2]
[422693720,1779253848000,-500.0,9.315e-05,2]
[422693718,1779253848000,-500.0,9.315e-05,2]
[422693719,1779253848000,-1339.23,9.315e-05,2]
[422693723,1779253848000,-500.0,9.315e-05,2]
[422693713,1779253848000,-1114.89,9.315e-05,2]
[422693726,1779253848000,-515.99,9.315e-05,2]
[422693725,1779253848000,-500.0,9.315e-05,2]
[422693739,1779253848000,-500.0,9.315e-05,2]
[422693738,1779253848000,-500.0,9.315e-05,2]
[422693734,1779253848000,-500.0,9.315e-05,2]
[422693724,1779253848000,-859.28,9.315e-05,2]
[422693735,1779253848000,-500.0,9.315e-05,2]
[422693732,1779253848000,-500.0,9.315e-05,2]
[422693736,1779253848000,-500.0,9.315e-05,2]
[422693731,1779253848000,-500.0,9.315e-05,2]
[422693728,1779253848000,-1653.39,9.315e-05,2]
[422693733,1779253848000,-500.0,9.315e-05,2]
[422693729,1779253848000,-500.0,9.315e-05,2]
[422693730,1779253848000,-500.0,9.315e-05,2]
[422693727,1779253848000,-2724.9,9.315e-05,2]
[422693784,1779253849000,-2888.2,9.315e-05,2]
[422693788,1779253849000,-218.34831878,9.315e-05,2]
[422693789,1779253849000,-279.84748799,9.315e-05,2]
[422693791,1779253849000,-500.0,9.315e-05,2]
[422693795,1779253849000,-500.0,9.315e-05,2]
[422693794,1779253849000,-500.0,9.315e-05,2]
[422693790,1779253849000,-220.15251201,9.315e-05,2]
[422693781,1779253849000,-606.4,9.315e-05,2]
[422693796,1779253849000,-500.0,9.315e-05,2]
[422693792,1779253849000,-500.0,9.315e-05,2]
[422693785,1779253849000,-2431.41,9.315e-05,2]
[422693778,1779253849000,-1518.43,9.315e-05,2]
[422693786,1779253849000,-500.0,9.315e-05,2]
[422693783,1779253849000,-500.0,9.315e-05,2]
[422693780,1779253849000,-2021.35,9.315e-05,2]
[422693787,1779253849000,-281.65168122,9.315e-05,2]
[422693776,1779253849000,-500.0,9.315e-05,2]
[422693779,1779253849000,-2915.29,9.315e-05,2]
[422693777,1779253849000,-606.11,9.315e-05,2]
[422693773,1779253849000,-500.0,9.315e-05,2]
[422693774,1779253849000,-305.03869723,9.315e-05,2]
[422693775,1779253849000,-537.84,9.315e-05,2]
[422693793,1779253849000,-1924.53,9.315e-05,2]
[422693782,1779253849000,-2145.16,9.315e-05,2]
[422693799,1779253849000,-1756.94,9.315e-05,2]
[422693802,1779253849000,-1090.37,9.315e-05,2]
[422693800,1779253849000,-500.0,9.315e-05,2]
[422693797,1779253849000,-666.47,9.315e-05,2]
[422693822,1779253849000,-500.0,9.315e-05,2]
[422693819,1779253849000,-197.35580015,9.315e-05,2]
[422693821,1779253849000,-500.0,9.315e-05,2]
[422693820,1779253849000,-500.0,9.315e-05,2]
[422693817,1779253849000,-568.02726802,9.315e-05,2]
[422693818,1779253849000,-361.0,9.315e-05,2]
[422693816,1779253849000,-2060.3243339,9.315e-05,2]
[422693815,1779253849000,-1182.80259793,9.315e-05,2]
[422693813,1779253849000,-1573.32,9.315e-05,2]
[422693814,1779253849000,-1564.93,9.315e-05,2]
[422693812,1779253849000,-781.28,9.315e-05,2]
[422693823,1779253849000,-500.0,9.315e-05,2]
[422693808,1779253849000,-2158.56,9.315e-05,2]
[422693810,1779253849000,-5675.97,9.315e-05,2]
[422693809,1779253849000,-2009.7,9.315e-05,2]
[422693806,1779253849000,-500.0,9.315e-05,2]
[422693807,1779253849000,-1011.77,9.315e-05,2]
[422693804,1779253849000,-500.0,9.315e-05,2]
[422693824,1779253849000,-500.0,9.315e-05,2]
[422693805,1779253849000,-500.0,9.315e-05,2]
[422693801,1779253849000,-500.0,9.315e-05,2]
[422693803,1779253849000,-2121.79,9.315e-05,2]
[422693798,1779253849000,-1765.95,9.315e-05,2]
[422693811,1779253849000,-1078.06,9.315e-05,2]
[422693838,1779253850000,-1128.53873232,9.315e-05,2]
[422693840,1779253850000,-1359.63,9.315e-05,2]
[422693841,1779253850000,-500.0,9.315e-05,2]
[422693848,1779253850000,-628.16,9.315e-05,2]
[422693839,1779253850000,-1438.45126768,9.315e-05,2]
[422693843,1779253850000,-500.0,9.315e-05,2]
[422693845,1779253850000,-31.84363641,9.315e-05,2]
[422693844,1779253850000,-2668.41,9.315e-05,2]
[422693842,1779253850000,-1186.8,9.315e-05,2]
[422693833,1779253850000,-1177.48416202,9.315e-05,2]
[422693837,1779253850000,-500.0,9.315e-05,2]
[422693834,1779253850000,-2535.75258541,9.315e-05,2]
[422693831,1779253850000,-549.78,9.315e-05,2]
[422693835,1779253850000,-2350.61325257,9.315e-05,2]
[422693836,1779253850000,-500.0,9.315e-05,2]
[422693832,1779253850000,-500.0,9.315e-05,2]
[422693829,1779253850000,-271.1395093,9.315e-05,2]
[422693828,1779253850000,-1998.99,9.315e-05,2]
[422693827,1779253850000,-500.0,9.315e-05,2]
[422693825,1779253850000,-30692.84,9.315e-05,2]
[422693826,1779253850000,-500.0,9.315e-05,2]
[422693846,1779253850000,-468.15636359,9.315e-05,2]
[422693830,1779253850000,-969.7704907,9.315e-05,2]
[422693847,1779253850000,-1938.51,9.315e-05,2]
[422693868,1779253850000,-500.0,9.374e-05,2]
[422693853,1779253850000,-3471.12015174,9.315e-05,2]
[422693873,1779253850000,-275.01374592,9.589e-05,2]
[422693872,1779253850000,-500.0,9.589e-05,2]
[422693863,1779253850000,-4707.77,9.315e-05,2]
[422693865,1779253850000,-819.34,9.315e-05,2]
[422693866,1779253850000,-500.0,9.315e-05,2]
[422693864,1779253850000,-2023.45,9.315e-05,2]
[422693870,1779253850000,-178.09329783,9.47e-05,2]
[422693861,1779253850000,-500.0,9.315e-05,2]
[422693869,1779253850000,-293.52827581,9.39e-05,2]
[422693849,1779253850000,-766.36,9.315e-05,2]
[422693862,1779253850000,-1709.26,9.315e-05,2]
[422693871,1779253850000,-364.7700049,9.584e-05,2]
[422693867,1779253850000,-637.93377222,9.373e-05,2]
[422693859,1779253850000,-500.0,9.315e-05,2]
[422693858,1779253850000,-937.65,9.315e-05,2]
[422693854,1779253850000,-1415.04984826,9.315e-05,2]
[422693857,1779253850000,-500.0,9.315e-05,2]
[422693856,1779253850000,-521.46,9.315e-05,2]
[422693855,1779253850000,-730.32,9.315e-05,2]
[422693850,1779253850000,-1571.7,9.315e-05,2]
[422693852,1779253850000,-500.0,9.315e-05,2]
[422693851,1779253850000,-500.0,9.315e-05,2]
[422693860,1779253850000,-1311.79,9.315e-05,2]
[422693930,1779255032000,-538.85058277,7.667e-05,2]
[422693924,1779255032000,-527.98651146,7.592e-05,2]
[422693933,1779255032000,-72.14941723,7.667e-05,2]
[422693935,1779255032000,-9922.82112277,7.668e-05,2]
[422693926,1779255032000,-159.61514809,7.667e-05,2]
[422693928,1779255032000,-140.38485191,7.667e-05,2]
[422693937,1779255032000,-2719.4386483,7.668e-05,2]
[422694043,1779255038000,-10351.29328183,8.119e-05,2]
[422694016,1779255038000,-300.0,7.668e-05,2]
[422694018,1779255038000,-300.0,7.668e-05,2]
[422694015,1779255038000,-511.90327574,7.668e-05,2]
[422694019,1779255038000,-300.0,7.668e-05,2]
[422694017,1779255038000,-300.0,7.668e-05,2]
[422694021,1779255038000,-300.0,7.668e-05,2]
[422694023,1779255038000,-300.0,7.668e-05,2]
[422694020,1779255038000,-300.0,7.668e-05,2]
[422694022,1779255038000,-300.0,7.668e-05,2]
[422694027,1779255038000,-300.0,7.668e-05,2]
[422694026,1779255038000,-174.16524477,7.668e-05,2]
[422694025,1779255038000,-125.83475523,7.668e-05,2]
[422694029,1779255038000,-300.0,7.668e-05,2]
[422694042,1779255038000,-4760.11500396,8.119e-05,2]
[422694038,1779255038000,-160.0,7.98e-05,2]
[422694024,1779255038000,-300.0,7.668e-05,2]
[422694039,1779255038000,-67532.58457362,8.119e-05,2]
[422694041,1779255038000,-12735.29426466,8.119e-05,2]
[422694036,1779255038000,-766.43500783,7.98e-05,2]
[422694040,1779255038000,-128866.19529585,8.119e-05,2]
[422694030,1779255038000,-300.0,7.668e-05,2]
[422694032,1779255038000,-600.0,7.668e-05,2]
[422694031,1779255038000,-300.0,7.668e-05,2]
[422694028,1779255038000,-300.0,7.668e-05,2]
[422694033,1779255038000,-160.0,7.98e-05,2]
[422694035,1779255038000,-161.70661154,7.98e-05,2]
[422694060,1779255040000,-1346.44188268,8.119e-05,2]
[422694058,1779255040000,-2628.39999999,8.119e-05,2]
[422694059,1779255040000,-726.24112291,8.119e-05,2]
[422694072,1779255043000,-3678.4336492,8.119e-05,2]
[422694078,1779255047000,-620.66708974,8.119e-05,2]
[422694077,1779255047000,-688.92404718,8.119e-05,2]
[422694080,1779255073000,-4142.73,8.119e-05,2]
[422694081,1779255213000,-22778.0,0.00018493,120]
[422694083,1779255395000,3020.0,0.00017808,120]
[422694089,1779255685000,165.7873912,3.232e-05,2]
[422694170,1779256233000,-300.0,6.263e-05,2]
[422694166,1779256233000,-300.0,6.263e-05,2]
[422694168,1779256233000,-300.0,6.263e-05,2]
[422694165,1779256233000,-300.0,6.263e-05,2]
[422694172,1779256234000,-1200.0,6.263e-05,2]
[422694177,1779256234000,-538.94250072,6.264e-05,2]
[422694174,1779256234000,-2600.0,6.264e-05,2]
[422694241,1779256243000,-24722.64722523,6.264e-05,2]
[422694239,1779256243000,-302.2747456,5.83e-05,2]
[422694642,1779256247000,-4895.46068704,6.264e-05,2]
[422694639,1779256247000,-778.70111579,6.264e-05,2]
[422694825,1779256290000,200.0,0.00017414,120]
[422694833,1779256482000,200.063328,5.337e-05,120]
[422694838,1779256924000,-701.3285688,5.184e-05,2]
[422694837,1779256924000,-300.0,5.183e-05,2]
[422694841,1779257213000,-300.0,5.183e-05,2]
[422694842,1779257213000,-300.0,5.183e-05,2]
[422694843,1779257213000,-1200.0,5.183e-05,2]
[422694845,1779257213000,-18821.4355375,5.184e-05,2]
[422694848,1779257213000,-300.0,5.287e-05,2]
[422694846,1779257213000,-578.69769416,5.261e-05,2]
[422694847,1779257213000,-300.0,5.287e-05,2]
[422694849,1779257213000,-300.0,5.287e-05,2]
[422694844,1779257213000,-300.0,5.183e-05,2]
[422694850,1779257214000,-300.0,5.287e-05,2]
[422694851,1779257214000,-300.0,5.287e-05,2]
[422694853,1779257214000,-300.0,5.287e-05,2]
[422694859,1779257214000,-300.0,5.287e-05,2]
[422694855,1779257214000,-300.0,5.287e-05,2]
[422694854,1779257214000,-300.0,5.287e-05,2]
[422694856,1779257214000,-300.0,5.287e-05,2]
[422694857,1779257214000,-300.0,5.287e-05,2]
[422694858,1779257214000,-300.0,5.287e-05,2]
[422694860,1779257214000,-300.0,5.287e-05,2]
[422694852,1779257214000,-300.0,5.287e-05,2]
[422694862,1779257214000,-200.063328,5.337e-05,2]
[422694864,1779257214000,-5999.1620455,5.479e-05,2]
[422694865,1779257214000,-154.3400424,5.643e-05,2]
[422694863,1779257214000,-600.0,5.392e-05,2]
[422694866,1779257214000,-301.0,5.702e-05,2]
[422694868,1779257214000,-420.0,5.702e-05,2]
[422694870,1779257214000,-720.0,5.931e-05,2]
[422694869,1779257214000,-200.0,5.872e-05,2]
[422694867,1779257214000,-1200.0,5.702e-05,2]
[422694871,1779257214000,-14205.30135244,6.264e-05,8]
[422694861,1779257214000,-300.0,5.287e-05,2]
[422694878,1779257260000,-7803.04425671,6.264e-05,8]
[422694877,1779257260000,-1001.3284628,5.847e-05,2]
[422694879,1779257260000,-578.15683907,6.382e-05,2]
[422694880,1779257260000,-151.0,6.5e-05,2]
[422694882,1779257260000,-151.0,6.5e-05,2]
[422694883,1779257260000,-300.0,6.527e-05,2]
[422694884,1779257260000,-325.9506487,6.528e-05,2]
[422694885,1779257260000,-325.9506488,6.528e-05,2]
[422694888,1779257260000,-300.0,6.657e-05,2]
[422694887,1779257260000,-300.0,6.657e-05,2]
[422694886,1779257260000,-271.7632104,6.528e-05,2]
[422694881,1779257260000,-151.0,6.5e-05,2]
[422694893,1779257261000,-300.0,6.657e-05,2]
[422694889,1779257261000,-300.0,6.657e-05,2]
[422694890,1779257261000,-300.0,6.657e-05,2]
[422694892,1779257261000,-300.0,6.657e-05,2]
[422694891,1779257261000,-300.0,6.657e-05,2]
[422694900,1779257261000,-40.80593352,6.657e-05,2]
[422694895,1779257261000,-300.0,6.657e-05,2]
[422694897,1779257261000,-300.0,6.657e-05,2]
[422694896,1779257261000,-300.0,6.657e-05,2]
[422694898,1779257261000,-300.0,6.657e-05,2]
[422694899,1779257261000,-300.0,6.657e-05,2]
[422694894,1779257261000,-300.0,6.657e-05,2]
[422694902,1779257408000,-161.9065004,6.313e-05,2]
[422694952,1779257432000,-500.0,7.264e-05,2]
[422694950,1779257432000,-500.0,7.264e-05,2]
[422694948,1779257432000,-500.0,7.264e-05,2]
[422694946,1779257432000,-415.35398232,7.264e-05,2]
[422694942,1779257432000,-500.0,7.264e-05,2]
[422694934,1779257432000,-300.0,7.263e-05,2]
[422694944,1779257432000,-500.0,7.264e-05,2]
[422694940,1779257432000,-500.0,7.264e-05,2]
[422694937,1779257432000,-500.0,7.264e-05,2]
[422694957,1779257432000,-500.0,7.264e-05,2]
[422694931,1779257432000,-364.71171384,6.849e-05,2]
[422694953,1779257432000,-500.0,7.264e-05,2]
[422694961,1779257432000,-500.0,7.264e-05,2]
[422694965,1779257432000,-500.0,7.264e-05,2]
[422694980,1779257432000,-500.0,7.264e-05,2]
[422694982,1779257432000,-74.98912066,7.264e-05,2]
[422694976,1779257432000,-500.0,7.264e-05,2]
[422694955,1779257432000,-500.0,7.264e-05,2]
[422694975,1779257432000,-500.0,7.264e-05,2]
[422694978,1779257432000,-500.0,7.264e-05,2]
[422694971,1779257432000,-505.79007891,7.264e-05,2]
[422694967,1779257432000,-224.3767145,7.264e-05,2]
[422694963,1779257432000,-650.0,7.264e-05,2]
[422694959,1779257432000,-500.0,7.264e-05,2]
[422694969,1779257432000,-500.0,7.264e-05,2]
[422694973,1779257432000,-500.0,7.264e-05,2]
[422695184,1779257438000,-500.0,7.264e-05,2]
[422695186,1779257438000,-500.0,7.264e-05,2]
[422695185,1779257438000,-500.0,7.264e-05,2]
[422695191,1779257438000,-38471.72883323,7.265e-05,2]
[422695183,1779257438000,-425.01087934,7.264e-05,2]
[422695188,1779257438000,-411.43883008,7.264e-05,2]
[422695190,1779257438000,-35042.89529586,7.264e-05,2]
[422695189,1779257438000,-500.0,7.264e-05,2]
[422695192,1779257438000,-4681.54622423,7.265e-05,2]
[422695193,1779257438000,-13602.84797964,7.265e-05,2]
[422695187,1779257438000,-500.0,7.264e-05,2]
[422695199,1779257441000,-3821.99177049,7.164e-05,2]
[422695251,1779257445000,-6491.97092136,7.164e-05,2]
[422695254,1779257445000,-471.77632926,7.164e-05,2]
[422695253,1779257445000,-953.87845248,7.164e-05,2]
[422695255,1779257445000,-45410.59550528,7.164e-05,2]
[422695259,1779257445000,-10301.96296831,7.164e-05,2]
[422695260,1779257445000,-673.32755196,7.164e-05,2]
[422695258,1779257445000,-729.67770619,7.164e-05,2]
[422695257,1779257445000,-6585.51744111,7.164e-05,2]
[422695252,1779257445000,-304.0,7.164e-05,2]
[422695256,1779257445000,-30286.95355542,7.164e-05,2]
[422695269,1779257447000,-9817.40117942,7.164e-05,2]
[422695268,1779257447000,-13325.58074445,7.164e-05,2]
[422695267,1779257447000,-28646.30297317,7.164e-05,2]
[422695271,1779257447000,-178372.83897682,7.265e-05,2]
[422695270,1779257447000,-54090.44981404,7.164e-05,2]
[422695273,1779257447000,-1093.92499483,7.265e-05,2]
[422695276,1779257447000,-751.50978022,7.265e-05,2]
[422695275,1779257447000,-6020.43921358,7.265e-05,2]
[422695274,1779257447000,-3008.28133464,7.265e-05,2]
[422695277,1779257458000,1000.0,0.00012,120]
[422695279,1779257488000,-300.0,7.264e-05,2]
[422695280,1779257488000,-4700.0,7.265e-05,2]
[422695282,1779257534000,-4700.0,7.265e-05,2]
[422695281,1779257534000,-300.0,7.264e-05,2]
[422695283,1779257543000,-5000.0,7.265e-05,2]
[422695284,1779257561000,-9000.0,7.265e-05,2]
[422695546,1779258640000,-266.29267422,7.064e-05,2]
[422695549,1779258640000,-240.03486028,7.064e-05,2]
[422695551,1779258640000,-500.0,7.064e-05,2]
[422695550,1779258640000,-259.96513972,7.064e-05,2]
[422695554,1779258640000,-429.30303048,7.064e-05,2]
[422695552,1779258640000,-500.0,7.064e-05,2]
[422695563,1779258640000,-500.0,7.064e-05,2]
[422695548,1779258640000,-233.70732578,7.064e-05,2]
[422695553,1779258640000,-70.69696952,7.064e-05,2]
[422695545,1779258640000,-500.0,7.064e-05,2]
[422695538,1779258640000,-151.0,6.854e-05,2]
[422695543,1779258640000,-151.0,6.854e-05,2]
[422695544,1779258640000,-300.0,7.063e-05,2]
[422695541,1779258640000,-151.0,6.854e-05,2]
[422695540,1779258640000,-151.0,6.854e-05,2]
[422695555,1779258640000,-270.69696952,7.064e-05,2]